fUST/lending_fUST_20250921
["ID","MTS","AMOUNT","RATE_DAILY","PERIOD"]
[386601482,1758414038752,480.0,0.00019764,2]
[386601483,1758414042413,480.0,0.00019764,2]
[386601484,1758414055327,889.18,0.00019442,2]
[386601485,1758414056166,-8150.83,0.00019765,2]
[386601486,1758414056469,-10000.01,0.00019765,2]
[386601487,1758414057065,-10000.01,0.00019765,2]
[386601488,1758414057296,-10000.01,0.00019765,2]
[386601489,1758414057564,-10000.01,0.00019765,2]
[386601490,1758414057866,-10000.01,0.00019765,2]
[386601491,1758414058137,-10000.01,0.00019765,2]
[386601492,1758414058358,-10000.01,0.00019765,2]
[386601493,1758414058642,-10000.01,0.00019765,2]
[386601494,1758414058841,480.0,0.00019764,2]
[386601495,1758414058937,-9520.01,0.00019765,2]
[386601496,1758414066237,-480.0,0.00019764,2]
[386601497,1758414070620,480.0,0.00019764,2]
[386601498,1758414074286,509.00429618,0.00019764,2]
[386601499,1758414074940,480.0,0.00019764,2]
[386601500,1758414080129,480.0,0.00019764,2]
[386601501,1758414082147,480.0,0.00019764,2]
[386601502,1758414082619,480.0,0.00019764,2]
[386601503,1758414084051,500.0,0.00019764,2]
[386601504,1758414084181,500.0,0.00019764,2]
[386601505,1758414084290,500.0,0.00019764,2]
[386601506,1758414084396,500.0,0.00019764,2]
[386601507,1758414084509,612.6688341,0.00019764,2]
[386601508,1758414093776,610.1,0.00019764,2]
[386601509,1758414093998,500.0,0.00019764,2]
[386601510,1758414094099,500.0,0.00019764,2]
[386601511,1758414095865,480.0,0.00019764,2]
[386601513,1758414096349,544.10602702,0.00019764,2]
[386601515,1758414096446,169.79218785,0.00019764,2]
[386601534,1758414101881,500.0,0.00019764,2]
[386601535,1758414101991,214.33865485,0.00019764,2]
[386601536,1758414102092,285.66134515,0.00019764,2]
[386601538,1758414102192,445.59260111,0.00019764,2]
[386601539,1758414102298,500.0,0.00019764,2]
[386601541,1758414102493,500.0,0.00019764,2]
[386601543,1758414102599,500.0,0.00019764,2]
[386601545,1758414102701,500.0,0.00019764,2]
[386601546,1758414102795,453.44295103,0.00019764,2]
[386601562,1758414108122,480.0,0.00019764,2]
[386601569,1758414111823,500.0,0.00019764,2]
[386601570,1758414111920,308.40186301,0.00019764,2]
[386601584,1758414116090,500.0,0.00019764,2]
[386601585,1758414116180,599.36991942,0.00019764,2]
[386601586,1758414116265,399.74484464,0.00019764,2]
[386601589,1758414117701,480.0,0.00019764,2]
[386601590,1758414120000,500.0,0.00019764,2]
[386601591,1758414120104,500.0,0.00019764,2]
[386601592,1758414120216,254.83471863,0.00019764,2]
[386601593,1758414122690,300.0,0.00019764,2]
[386601594,1758414123963,500.0,0.00019764,2]
[386601595,1758414124093,500.0,0.00019764,2]
[386601596,1758414124210,500.0,0.00019764,2]
[386601597,1758414134187,492.96175701,0.00019764,2]
[386601598,1758414134286,7.03824299,0.00019764,2]
[386601599,1758414134397,500.0,0.00019764,2]
[386601600,1758414134595,500.0,0.00019764,2]
[386601601,1758414135239,480.0,0.00019764,2]
[386601602,1758414136812,905.31,0.00019474,2]
[386601603,1758414141755,500.0,0.00019764,2]
[386601604,1758414141967,500.0,0.00019764,2]
[386601605,1758414142056,500.0,0.00019764,2]
[386601606,1758414142152,500.0,0.00019764,2]
[386601607,1758414142246,500.0,0.00019764,2]
[386601608,1758414142336,574.51444206,0.00019764,2]
[386601609,1758414149102,480.0,0.00019764,2]
[386601610,1758414152242,530.61,0.00019764,2]
[386601611,1758414153960,500.0,0.00019764,2]
[386601612,1758414154066,500.00000001,0.00019764,2]
[386601613,1758414154218,500.0,0.00019764,2]
[386601614,1758414154381,500.0,0.00019764,2]
[386601615,1758414154484,500.0,0.00019764,2]
[386601616,1758414154591,500.0,0.00019764,2]
[386601617,1758414154692,500.0,0.00019764,2]
[386601618,1758414154879,22.53731494,0.00019764,2]
[386601619,1758414154978,477.46268506,0.00019764,2]
[386601620,1758414155084,500.0,0.00019764,2]
[386601621,1758414162616,480.0,0.00019764,2]
[386601622,1758414167486,480.0,0.00019764,2]
[386601623,1758414171048,480.0,0.00019764,2]
[386601624,1758414177662,480.0,0.00019764,2]
[386601625,1758414178987,480.0,0.00019764,2]
[386601626,1758414182662,300.0,0.00019764,2]
[386601627,1758414183853,1042.86,0.00019764,2]
[386601628,1758414193578,480.0,0.00019764,2]
[386601629,1758414193989,480.0,0.00019764,2]
[386601630,1758414198603,480.0,0.00019764,2]
[386601631,1758414198745,480.0,0.00019764,2]
[386601632,1758414204845,1224.64,0.00019764,2]
[386601633,1758414208706,627.69,0.00019764,2]
[386601634,1758414218286,480.0,0.00019764,2]
[386601635,1758414219171,907.98,0.00019473,2]
[386601636,1758414225978,119.37731494,0.00019764,2]
[386601637,1758414226019,751.71268506,0.00019764,2]
[386601638,1758414230619,480.0,0.00019764,2]
[386601639,1758414239234,480.0,0.00019764,2]
[386601640,1758414242274,300.0,0.00019764,2]
[386601641,1758414248176,480.0,0.00019764,2]
[386601642,1758414249946,1173.62,0.00019764,2]
[386601643,1758414255143,480.0,0.00019764,2]
[386601644,1758414255237,480.0,0.00019764,2]
[386601645,1758414256619,187.57939656,0.00019665,2]
[386601646,1758414257236,480.0,0.00019764,2]
[386601647,1758414263590,480.0,0.00019764,2]
[386601648,1758414270909,480.0,0.00019764,2]
[386601649,1758414274901,480.0,0.00019764,2]
[386601650,1758414278999,480.0,0.00019764,2]
[386601651,1758414281798,480.0,0.00019764,2]
[386601652,1758414293589,480.0,0.00019764,2]
[386601653,1758414298931,480.0,0.00019764,2]
[386601654,1758414300650,896.42,0.00019472,2]
[386601655,1758414303932,450.67791838,0.00019764,2]
[386601656,1758414303959,29.32208162,0.00019764,2]
[386601657,1758414305508,694.11,0.00019764,2]
[386601658,1758414309517,168.3888056,0.00019765,2]
[386601659,1758414311399,480.0,0.00019764,2]
[386601660,1758414313325,480.0,0.00019764,2]
[386601661,1758414314095,8148.18911278,0.00019765,2]
[386601662,1758414314230,3082.9436892,0.00019765,2]
[386601663,1758414314333,192.38335136,0.00019764,2]
[386601664,1758414314831,480.0,0.00019764,2]
[386601665,1758414315737,480.0,0.00019764,2]
[386601666,1758414319406,545.506984,0.00018942,2]
[386601667,1758414321435,480.0,0.00019764,2]
[386601668,1758414321512,480.0,0.00019764,2]
[386601670,1758414326686,616.62,0.00019764,2]
[386601671,1758414335486,480.0,0.00019764,2]
[386601672,1758414345332,480.0,0.00019764,2]
[386601673,1758414347719,734.55,0.00019764,2]
[386601674,1758414348570,480.0,0.00019764,2]
[386601676,1758414361208,1124.72,0.00019764,2]
[386601677,1758414361599,343.28597544,0.00019764,2]
[386601678,1758414361636,944.32402456,0.00019764,2]
[386601679,1758414362546,480.0,0.00019764,2]
[386601680,1758414362675,300.0,0.00019764,2]
[386601682,1758414364713,480.0,0.00019764,2]
[386601683,1758414369470,480.0,0.00019764,2]
[386601684,1758414370249,703.95,0.00019764,2]
[386601685,1758414372488,508.51,0.00019764,2]
[386601686,1758414381018,899.5,0.00019475,2]
[386601687,1758414381547,783.85,0.00019764,2]
[386601689,1758414388179,158.0,8e-07,2]
[386601690,1758414389223,158.0,8e-07,2]
[386601691,1758414390258,158.0,8e-07,2]
[386601692,1758414391322,158.0,8e-07,2]
[386601693,1758414392356,158.0,8e-07,2]
[386601694,1758414393406,158.0,8e-07,2]
[386601695,1758414394067,482.42300143,0.00019764,2]
[386601696,1758414407872,1047.08,0.00019764,2]
[386601697,1758414422328,300.0,0.00019764,2]
[386601698,1758414424084,150.04578677,0.00019665,2]
[386601699,1758414424781,480.0,0.00019764,2]
[386601701,1758414427030,64112.1789626,0.00029247,120]
[386601702,1758414427098,480.0,0.00019764,2]
[386601703,1758414431905,480.0,0.00019764,2]
[386601704,1758414432219,52.32718724,0.00019764,2]
[386601705,1758414432243,433.19801415,0.00019764,2]
[386601706,1758414436116,-1704.879,0.00019765,2]
[386601707,1758414436308,1200.0,0.00019764,2]
[386601708,1758414436466,289.73747061,0.00019764,2]
[386601710,1758414439051,480.0,0.00019764,2]
[386601712,1758414442363,632.77,0.00019764,2]
[386601713,1758414442770,480.0,0.00019764,2]
[386601715,1758414452230,834.8,0.00019764,2]
[386601717,1758414454038,480.0,0.00019764,2]
[386601719,1758414457572,480.0,0.00019764,2]
[386601720,1758414463333,625.79,0.00019764,2]
[386601721,1758414464182,888.06,0.00019476,2]
[386601722,1758414465395,480.0,0.00019764,2]
[386601723,1758414466593,505.34250469,0.00019764,2]
[386601724,1758414470097,2190.31201055,0.00018,2]
[386601725,1758414470121,10000.01,0.00018,2]
[386601726,1758414470144,10000.01,0.00018,2]
[386601727,1758414470167,10000.01,0.00018,2]
[386601728,1758414470190,10000.01,0.00018,2]
[386601729,1758414470217,9182.75243654,0.00018,2]
[386601730,1758414473645,817.25756346,0.00019764,2]
[386601731,1758414473671,136.15243654,0.00019764,2]
[386601733,1758414476278,480.0,0.00019764,2]
[386601734,1758414477143,480.0,0.00019764,2]
[386601735,1758414481165,590.24,0.00019764,2]
[386601736,1758414484899,480.0,0.00019764,2]
[386601737,1758414492459,3070.0740746,0.00019205,5]
[386601738,1758414493440,480.0,0.00019764,2]
[386601739,1758414496707,480.0,0.00019764,2]
[386601740,1758414498422,480.0,0.00019764,2]
[386601741,1758414500003,674.62,0.00019764,2]
[386601742,1758414502247,480.0,0.00019764,2]
[386601743,1758414502454,480.0,0.00019764,2]
[386601744,1758414504117,480.0,0.00019764,2]
[386601745,1758414504167,1208.92348886,0.000176,2]
[386601746,1758414504190,895.15892483,0.000176,2]
[386601747,1758414504302,480.0,0.00019764,2]
[386601748,1758414504633,480.0,0.00019764,2]
[386601749,1758414513524,490.98,0.00019755,3]
[386601750,1758414513846,7653.87107517,0.00017,2]
[386601751,1758414513867,10000.01,0.00017,2]
[386601752,1758414513889,10000.01,0.00017,2]
[386601753,1758414513911,10000.01,0.00017,2]
[386601754,1758414514045,10000.01,0.00017,2]
[386601755,1758414514071,10000.01,0.00017,2]
[386601756,1758414514093,32.95411723,0.00017,2]
[386601758,1758414519766,480.0,0.00019764,2]
[386601759,1758414521323,711.56,0.00019764,2]
[386601760,1758414522190,212.55329707,0.00016,2]
[386601761,1758414522443,480.0,0.00019764,2]
[386601762,1758414526249,900.87131548,0.00019063,7]
[386601763,1758414526496,3313.0,0.00015,5]
[386601764,1758414531113,-480.0,0.00019764,2]
[386601765,1758414533762,1144.37,0.00019764,2]
[386601766,1758414534542,480.0,0.00019764,2]
[386601767,1758414537530,480.0,0.00019764,2]
[386601768,1758414537800,480.0,0.00019764,2]
[386601769,1758414540566,480.0,0.00019764,2]
[386601770,1758414542378,300.0,0.00019764,2]
[386601771,1758414542984,480.0,0.00019764,2]
[386601772,1758414544804,903.77,0.00019426,2]
[386601773,1758414549025,622.62,0.00019764,2]
[386601774,1758414549937,480.0,0.00019764,2]
[386601775,1758414550853,480.0,0.00019764,2]
[386601776,1758414551060,335.68411936,0.00019764,2]
[386601777,1758414552666,500.0,0.00019764,2]
[386601778,1758414552693,191.17741445,0.00019764,2]
[386601779,1758414556832,480.0,0.00019764,2]
[386601780,1758414557834,480.0,0.00019764,2]
[386601781,1758414560926,480.0,0.00019764,2]
[386601782,1758414561203,242.38846619,0.00019764,2]
[386601783,1758414561226,237.61153381,0.00019764,2]
[386601785,1758414583326,480.0,0.00019764,2]
[386601786,1758414583696,480.0,0.00019764,2]
[386601787,1758414585063,1233.96,0.00019764,2]
[386601788,1758414587249,153.40873693,0.00019665,2]
[386601789,1758414593281,480.0,0.00019764,2]
[386601790,1758414597078,480.0,0.00019764,2]
[386601791,1758414597357,480.0,0.00019764,2]
[386601792,1758414602069,171.0,0.00019764,2]
[386601793,1758414602248,300.0,0.00019764,2]
[386601794,1758414602422,300.0,0.00019764,2]
[386601795,1758414605183,751.19,0.00019764,2]
[386601796,1758414607138,1200.0,0.00019764,2]
[386601797,1758414608586,168.3888056,0.00019765,2]
[386601798,1758414608952,3084.45092366,0.00019765,2]
[386601799,1758414608974,7466.00690237,0.00019765,2]
[386601800,1758414610529,480.0,0.00019764,2]
[386601801,1758414611680,481.55072054,0.00019764,2]
[386601802,1758414613984,570.21,0.00019764,2]
[386601803,1758414620856,480.0,0.00019764,2]
[386601804,1758414624870,522.24237709,0.00019764,2]
[386601805,1758414624896,165.12762291,0.00019764,2]
[386601806,1758414625963,892.27,0.00019399,2]
[386601807,1758414628227,480.0,0.00019764,2]
[386601808,1758414630067,480.0,0.00019764,2]
[386601852,1758414632490,-647.63332892,0.00019765,2]
[386601859,1758414632545,-1397.39683539,0.00019765,2]
[386601865,1758414632601,-67155.82362957,0.00019765,2]
[386601867,1758414632612,-468.6273283,0.00019765,2]
[386602042,1758414636396,480.0,0.00019764,2]
[386602250,1758414638373,-5793.71587654,0.00019765,2]
[386602252,1758414638385,-1304.16636108,0.00019765,2]
[386602254,1758414638396,-41152.20471364,0.00019765,2]
[386602256,1758414638407,-264.53042605,0.00019765,2]
[386602260,1758414638419,-329.60288678,0.00019765,2]
[386602343,1758414639436,1052.29,0.00019764,2]
[386602455,1758414640431,-906.0,0.00019765,2]
[386602457,1758414640442,-4439.77,0.00019765,2]
[386602515,1758414640986,480.0,0.00019764,2]
[386602753,1758414643299,480.0,0.00019764,2]
[386603104,1758414647457,-2287.47922523,0.00019765,2]
[386603106,1758414647468,-3861.28236159,0.00019765,2]
[386603108,1758414647479,-1938.1301333,0.00019765,2]
[386603110,1758414647490,-355.15431908,0.00019765,2]
[386603113,1758414647506,-375.17554762,0.00019765,2]
[386603118,1758414647546,5000.0,0.00019178,2]
[386603121,1758414647574,490.32237709,0.00019178,2]
[386603122,1758414647597,1509.68454772,0.00019178,2]
[386603123,1758414647628,1096.68,0.00019764,2]
[386603210,1758414649460,480.0,0.00019764,2]
[386603211,1758414649940,480.0,0.00019764,2]
[386603212,1758414650031,2000.0,0.00019764,7]
[386603213,1758414650151,658.73,0.00019764,2]
[386603214,1758414650264,2000.0,0.00019764,7]
[386603215,1758414650531,1774.91545228,0.00019764,7]
[386603216,1758414650554,0.99579323,0.00019764,7]
[386603292,1758414651509,480.0,0.00019764,2]
[386603331,1758414652456,-5780.86301833,0.00019765,2]
[386603342,1758414652555,-10000.01,0.00019765,2]
[386603357,1758414652693,-10000.01,0.00019765,2]
[386603373,1758414652830,-10000.01,0.00019765,2]
[386603385,1758414652940,-10000.01,0.00019765,2]
[386603402,1758414653084,-10000.01,0.00019765,2]
[386603422,1758414653264,-10000.01,0.00019765,2]
[386603435,1758414653381,-10000.01,0.00019765,2]
[386603482,1758414653814,556.38,0.00019764,2]
[386603501,1758414654052,480.0,0.00019764,2]
[386604029,1758414662060,-592.28956643,0.00019764,2]
[386604033,1758414662089,-480.0,0.00019764,2]
[386604038,1758414662121,-976.36,0.00019764,2]
[386604042,1758414662156,-646.51,0.00019764,2]
[386604046,1758414662187,-638.31,0.00019764,2]
[386604050,1758414662215,-480.0,0.00019764,2]
[386604054,1758414662243,-480.0,0.00019764,2]
[386604058,1758414662271,-480.0,0.00019764,2]
[386604074,1758414662406,300.0,0.00019763,2]
[386604116,1758414663629,153.07086714,0.00019764,2]
[386604117,1758414663653,332.4736005,0.00019764,2]
[386604118,1758414663718,480.0,0.00019764,2]
[386604119,1758414666013,480.0,0.00019764,2]
[386604120,1758414667208,480.0,0.00019764,2]
[386604121,1758414668995,480.0,0.00019764,2]
[386604122,1758414669218,480.0,0.00019764,2]
[386604123,1758414671090,575.64416174,0.00019764,2]
[386604124,1758414673470,488.65285579,0.00019764,2]
[386604125,1758414674038,480.0,0.00019764,2]
[386604126,1758414674789,150.0,0.00019764,2]
[386604127,1758414677690,480.0,0.00019764,2]
[386604128,1758414678043,480.0,0.00019764,2]
[386604129,1758414681005,480.0,0.00019764,2]
[386604130,1758414681859,480.0,0.00019764,2]
[386604131,1758414682137,887.46,0.00019764,2]
[386604132,1758414686005,480.0,0.00019764,2]
[386604133,1758414689540,480.0,0.00019764,2]
[386604134,1758414690190,480.0,0.00019764,2]
[386604135,1758414690504,525.08855645,0.00019764,2]
[386604136,1758414690670,480.0,0.00019764,2]
[386604137,1758414694082,320.69082552,0.00019764,2]
[386604138,1758414694105,159.30917448,0.00019764,2]
[386604139,1758414694847,480.0,0.00019764,2]
[386604140,1758414695723,480.0,0.00019764,2]
[386604141,1758414697250,615.884372,0.00019764,2]
[386604142,1758414697277,304.45024018,0.00019764,2]
[386604143,1758414697310,500.0,0.00019764,2]
[386604144,1758414697336,500.0,0.00019764,2]
[386604145,1758414697364,500.0,0.00019764,2]
[386604146,1758414698887,667.59,0.00019764,2]
[386604147,1758414699984,480.0,0.00019764,2]
[386604148,1758414701472,480.0,0.00019764,2]
[386604149,1758414705802,500.0,0.00019764,2]
[386604150,1758414705831,500.0,0.00019764,2]
[386604151,1758414705859,500.0,0.00019764,2]
[386604152,1758414705905,500.0,0.00019764,2]
[386604153,1758414705933,500.0,0.00019764,2]
[386604154,1758414706623,892.54,0.00019395,2]
[386604155,1758414711708,480.0,0.00019764,2]
[386604156,1758414712082,162.1420215,0.00019764,2]
[386604157,1758414715091,488.81271276,0.00019764,2]
[386604158,1758414715119,309.28147908,0.00019764,2]
[386604159,1758414715144,190.71852092,0.00019764,2]
[386604160,1758414715171,500.0,0.00019764,2]
[386604161,1758414715200,364.77821374,0.00019764,2]
[386604162,1758414715482,480.0,0.00019764,2]
[386604163,1758414719509,229.75037282,0.00019451,2]
[386604164,1758414722592,300.0,0.00019764,2]
[386604165,1758414723189,480.0,0.00019764,2]
[386604166,1758414724082,480.0,0.00019764,2]
[386604167,1758414728338,480.0,0.00019764,2]
[386604168,1758414731677,480.0,0.00019764,2]
[386604169,1758414733962,480.0,0.00019764,2]
[386604170,1758414734190,480.0,0.00019764,2]
[386604171,1758414736469,1200.0,0.00019764,2]
[386604172,1758414738461,480.0,0.00019764,2]
[386604173,1758414746482,480.0,0.00019764,2]
[386604174,1758414748238,2894.76289252,0.00019665,2]
[386604175,1758414748261,10000.01,0.00019665,2]
[386604176,1758414748285,10000.01,0.00019665,2]
[386604177,1758414748308,10000.01,0.00019665,2]
[386604178,1758414759793,609.32,0.00019655,3]
[386604179,1758414782668,300.0,0.00019664,2]
[386604180,1758414786794,883.35,0.00019396,2]
[386604181,1758414788151,158.202551,0.00018875,2]
[386604186,1758414802170,261.76066586,0.00019451,2]
[386604187,1758414809025,584.83644283,0.00019664,2]
[386604188,1758414855690,480.0,0.00019664,2]
[386604189,1758414868941,872.11,0.0001938,2]
[386604190,1758414873433,284.58236098,0.00019664,2]
[386604191,1758414873467,202.3326572,0.00019664,2]
[386604192,1758414874393,500.0,0.00019664,2]
[386604193,1758414874425,160.62140012,0.00019664,2]
[386604194,1758414874462,500.0,0.00019664,2]
[386604195,1758414874503,273.82554019,0.00019664,2]
[386604196,1758414891310,363.76873627,0.00019664,2]
[386604197,1758414891406,250.0,0.00019664,2]
[386604198,1758414902246,300.0,0.00019664,2]
[386604199,1758414906016,1200.0,0.00019664,2]
[386604200,1758414923474,153.40873692,0.00019565,2]
[386604201,1758414950241,861.01,0.00019381,2]
[386604202,1758414989708,800.88090863,0.00019565,2]
[386604203,1758414989730,4013.47155983,0.00019565,2]
[386604204,1758415015445,480.0,0.00019664,2]
[386604205,1758415026289,480.0,0.00019664,2]
[386604206,1758415027827,-160.0,0.00019665,2]
[386604207,1758415028657,929.62784716,0.00019371,2]
[386604208,1758415028866,-2287.45972587,0.00019665,2]
[386604209,1758415030587,-178.2204934,0.00019395,2]
[386604210,1758415032580,-354.23,0.00019395,2]
[386604211,1758415034592,-306.25444771,0.00019395,2]
[386604212,1758415038106,-23.88505889,0.00019395,2]
[386604213,1758415038135,-616.68,0.00019664,2]
[386604214,1758415046582,300.16,0.00019655,3]
[386604215,1758415075053,8418.71988222,0.00018816,2]
[386604216,1758415075074,1581.28011778,0.00018816,2]
[386604217,1758415112742,851.61,0.00019386,2]
[386604218,1758415113173,438.93918859,0.00019664,2]
[386604219,1758415118236,1028.44,0.00019664,2]
[386604220,1758415134419,480.0,0.00019664,2]
[386604221,1758415138270,480.0,0.00019664,2]
[386604222,1758415152714,631.72,0.00019664,2]
[386604223,1758415169822,952.33,0.00019664,2]
[386604224,1758415176550,3555.69069363,0.00018816,2]
[386604225,1758415176572,10000.01,0.00018816,2]
[386604226,1758415176594,9542.71767457,0.00018816,2]
[386604227,1758415186555,457.29232543,0.00019664,2]
[386604228,1758415186577,22.70767457,0.00019664,2]
[386604229,1758415188212,-160.0,0.00019665,2]
[386604230,1758415188631,-938.42244321,0.00019665,2]
[386604231,1758415188696,-10000.01,0.00019665,2]
[386604232,1758415188854,-10000.01,0.00019665,2]
[386604233,1758415188919,500.0,0.00019664,2]
[386604234,1758415188947,500.0,0.00019664,2]
[386604235,1758415188975,500.0,0.00019664,2]
[386604236,1758415189002,174.41264125,0.00019664,2]
[386604237,1758415189030,500.0,0.00019664,2]
[386604238,1758415189056,361.09266354,0.00019664,2]
[386604239,1758415189093,500.0,0.00019664,2]
[386604240,1758415189123,500.0,0.00019664,2]
[386604241,1758415189151,500.0,0.00019664,2]
[386604242,1758415189184,500.0,0.00019664,2]
[386604243,1758415189211,500.0,0.00019664,2]
[386604244,1758415189241,500.0,0.00019664,2]
[386604245,1758415189267,500.0,0.00019664,2]
[386604246,1758415189294,500.0,0.00019664,2]
[386604247,1758415189324,500.0,0.00019664,2]
[386604248,1758415189453,-2964.50469521,0.00019665,2]
[386604249,1758415189481,197.24393689,0.00019664,2]
[386604250,1758415189507,500.0,0.00019664,2]
[386604251,1758415189536,500.0,0.00019664,2]
[386604252,1758415189565,500.0,0.00019664,2]
[386604253,1758415189604,301.03176009,0.00019664,2]
[386604254,1758415189634,500.0,0.00019664,2]
[386604255,1758415189662,240.89437051,0.00019664,2]
[386604256,1758415189694,202.62695315,0.00019664,2]
[386604257,1758415189716,297.37304685,0.00019664,2]
[386604258,1758415189752,500.0,0.00019664,2]
[386604259,1758415189785,500.0,0.00019664,2]
[386604260,1758415189907,-5760.83993251,0.00019665,2]
[386604261,1758415197747,-158.74655836,0.0001939,2]
[386604262,1758415198216,-694.73344164,0.0001939,2]
[386604263,1758415202087,300.0,0.00019664,2]
[386604264,1758415202855,480.0,0.00019664,2]
[386604265,1758415206104,774.0,0.00019664,2]
[386604266,1758415208425,240.93792652,0.00019664,2]
[386604267,1758415215266,463.42143325,0.00019664,2]
[386604268,1758415215297,353.54992569,0.00019664,2]
[386604269,1758415215324,500.0,0.00019664,2]
[386604270,1758415215355,500.0,0.00019664,2]
[386604271,1758415215389,216.92673546,0.00019664,2]
[386604272,1758415217951,500.0,0.00019664,2]
[386604273,1758415217982,500.0,0.00019664,2]
[386604274,1758415218025,500.0,0.00019664,2]
[386604275,1758415218054,500.0,0.00019664,2]
[386604276,1758415218307,500.0,0.00019664,2]
[386604277,1758415218338,308.6190279,0.00019664,2]
[386604278,1758415218389,500.0,0.00019664,2]
[386604279,1758415218610,419.58762093,0.00019664,2]
[386604280,1758415226080,480.0,0.00019664,2]
[386604281,1758415230517,480.0,0.00019664,2]
[386604282,1758415235651,93.50044697,0.00019555,2]
[386604283,1758415235674,706.49955303,0.00019555,2]
[386604284,1758415235705,800.0,0.00019625,2]
[386604285,1758415245083,3209.5683123,0.00019565,2]
[386604286,1758415245514,1251.69,0.00019664,2]
[386604287,1758415248479,480.0,0.00019664,2]
[386604288,1758415252710,603.50109133,0.00019664,2]
[386604289,1758415255773,153.40873692,0.00019565,2]
[386604290,1758415260680,480.0,0.00019664,2]
[386604291,1758415262702,300.0,0.00019664,2]
[386604292,1758415262951,480.0,0.00019664,2]
[386604293,1758415268466,510.44,0.00019664,2]
[386604294,1758415273980,619.68,0.00019664,2]
[386604295,1758415280040,405.22230642,0.00019664,2]
[386604296,1758415280061,74.77769358,0.00019664,2]
[386604297,1758415281421,868.17,0.00019459,2]
[386604298,1758415310498,272.753492,0.0001885,2]
[386604299,1758415314026,480.0,0.00019664,2]
[386604300,1758415322900,300.0,0.00019664,2]
[386604301,1758415328504,480.0,0.00019664,2]
[386604302,1758415332615,616.16,0.00019664,2]
[386604303,1758415335681,1200.0,0.00019664,2]
[386604304,1758415354978,1031.89,0.00019664,2]
[386604305,1758415355657,480.0,0.00019664,2]
[386604306,1758415359978,480.0,0.00019664,2]
[386604307,1758415362053,861.37,0.00019461,2]
[386604308,1758415362971,315.12046723,0.00019664,2]
[386604309,1758415366543,204.39193663,0.00019565,2]
[386604310,1758415371216,480.0,0.00019664,2]
[386604311,1758415375708,480.0,0.00019664,2]
[386604312,1758415377923,810.59,0.00019664,2]
[386604313,1758415382716,300.0,0.00019664,2]
[386604314,1758415389344,264.78641056,0.00019664,2]